bitfinex/quotes_SOLUSD_20251002
["timestamp","ask_amount","ask_price","bid_price","bid_amount"]
[1759437193354,10.87647521,231.07,231.03,9.66253444]
[1759437193554,10.87647521,231.07,231.03,10.33253444]
[1759437193755,10.87647521,231.07,231.03,9.66253444]
[1759437193971,10.87647521,231.08,231.03,9.66253444]
[1759437194167,11.54647521,231.08,231.03,9.66253444]
[1759437194370,0.67,231.07,231.03,9.66253444]
[1759437194576,0.67,231.06,231.03,9.66253444]
[1759437194779,0.67,231.05,231.03,9.66253444]
[1759437194979,2.84004602,231.07,231.03,9.66253444]
[1759437195153,3.51004602,231.06,231.03,9.66253444]
[1759437195354,0.67,231.06,231.03,9.66253444]
[1759437195573,10.87647521,231.06,231.03,9.66253444]
[1759437195772,11.54647521,231.06,231.03,9.66253444]
[1759437195973,10.87647521,231.06,231.03,9.66253444]
[1759437196180,10.87647521,231.07,231.03,9.66253444]
[1759437196366,0.67,231.06,231.03,9.66253444]
[1759437196664,11.54647521,231.08,231.03,9.66253444]
[1759437196872,0.67,231.07,231.03,9.66253444]
[1759437197181,0.67,231.06,231.03,9.66253444]
[1759437198255,11.54647521,231.05,231.03,9.66253444]
[1759437198458,11.54647521,231.04,231.03,9.66253444]
[1759437199577,15.87473005,231.04,231.03,9.66253444]
[1759437202678,11.54647521,231.04,231.03,9.66253444]
[1759437203792,15.87473005,231.04,231.03,9.66253444]
[1759437204687,10.87647521,231.04,231.03,9.66253444]
[1759437207087,15.91473005,231.04,231.03,9.66253444]
[1759437208578,17.69730362,231.04,231.03,9.66253444]
[1759437210494,18.70517349,231.04,231.03,9.66253444]
[1759437213675,10.87647521,231.04,231.03,9.66253444]
[1759437213876,10.87647521,231.04,231.03,10.37253444]
[1759437214082,10.87647521,231.04,231.03,9.66253444]
[1759437215183,3.50044344,231.09,231.03,9.66253444]
[1759437215184,0.71,231.09,231.03,10.37253444]
[1759437215382,10.87647521,231.09,231.03,10.37253444]
[1759437215568,10.87647521,231.07,231.03,10.37253444]
[1759437215969,10.87647521,231.05,231.03,9.66253444]
[1759437216780,11.58647521,231.04,231.03,9.66253444]
[1759437217388,14.37691865,231.04,231.03,9.66253444]
[1759437217693,15.91473005,231.04,231.03,9.66253444]
[1759437218598,18.70517349,231.04,231.03,9.66253444]
[1759437218821,15.91473005,231.04,231.03,9.66253444]
[1759437221693,18.70517349,231.04,231.03,9.66253444]
[1759437221905,15.91473005,231.04,231.03,9.66253444]
[1759437222603,18.70517349,231.04,231.03,9.66253444]
[1759437226003,15.20473005,231.04,231.03,9.66253444]
[1759437227176,15.91473005,231.04,231.03,9.66253444]
[1759437228702,15.20473005,231.04,231.03,9.66253444]
[1759437229493,15.91473005,231.04,231.03,1e-08]
[1759437231310,18.17186451,231.04,231.03,1e-08]
[1759437231679,41.82555389,231.04,231.03,1e-08]
[1759437231890,21.55886287,231.04,231.03,1e-08]
[1759437232203,36.00473005,231.04,231.03,1e-08]
[1759437232394,49.03841943,231.04,231.03,1e-08]
[1759437233280,44.71016459,231.04,231.03,1e-08]
[1759437233480,15.20473005,231.04,231.03,0.71000001]
[1759437233686,15.20473005,231.04,231.03,1e-08]
[1759437236000,15.91473005,231.04,231.03,1e-08]
[1759437236887,18.70517349,231.04,231.03,1e-08]
[1759437237092,49.68517349,231.04,231.03,1e-08]
[1759437237789,52.53824632,231.04,231.03,1e-08]
[1759437240193,18.76780288,231.04,231.03,1e-08]
[1759437240523,52.51824632,231.04,231.03,1e-08]
[1759437243054,18.05780288,231.04,231.03,1e-08]
[1759437243316,10.87647521,231.04,231.03,1e-08]
[1759437243485,15.20473005,231.04,231.03,1e-08]
[1759437244432,10.87647521,231.04,231.03,1e-08]
[1759437244722,15.20473005,231.04,231.03,1e-08]
[1759437246426,10.87647521,231.04,231.03,1e-08]
[1759437246637,10.81900586,231.08,231.03,1e-08]
[1759437246638,20.8,231.1,231.03,0.65000001]
[1759437246838,13.66691865,231.08,231.03,0.65000001]
[1759437247137,13.73018089,231.08,231.03,0.65000001]
[1759437247914,13.73018089,231.08,231.04,0.65]
[1759437248109,15.20401254,231.08,231.05,0.65]
[1759437248918,15.20401254,231.08,231.03,1e-08]
[1759437248919,15.20401254,231.08,231.06,0.65]
[1759437249322,10.87647521,231.08,231.06,0.65]
[1759437249511,15.20406867,231.08,231.06,0.65]
[1759437249722,10.87647521,231.08,231.06,0.65]
[1759437250024,15.20399609,231.08,231.06,0.65]
[1759437250844,15.20399609,231.08,231.03,1e-08]
[1759437251047,15.20399609,231.08,231.04,0.65]
[1759437251551,15.20399609,231.08,231.05,0.65]
[1759437251914,10.87647521,231.06,231.03,1e-08]
[1759437252117,13.66691865,231.04,231.03,1e-08]
[1759437252355,13.72979483,231.04,231.03,1e-08]
[1759437252554,10.87647521,231.04,231.03,1e-08]
[1759437253243,11.55647521,231.04,231.03,1e-08]
[1759437253545,15.88473005,231.04,231.03,1e-08]
[1759437254134,15.20473005,231.04,231.03,1e-08]
[1759437254442,15.88473005,231.04,231.03,1e-08]
[1759437255945,18.74083861,231.04,231.03,1e-08]
[1759437256819,18.06083861,231.04,231.03,1e-08]
[1759437257247,18.0595655,231.04,231.03,1e-08]
[1759437257431,4.32694387,231.11,231.03,0.65000001]
[1759437257626,10.87647521,231.1,231.03,0.65000001]
[1759437257833,13.66691865,231.07,231.03,1e-08]
[1759437258239,10.87647521,231.07,231.03,1e-08]
[1759437259844,4.3278802,231.06,231.03,1e-08]
[1759437262123,10.87647521,231.05,231.03,1e-08]
[1759437263352,4.3282368,231.05,231.03,1e-08]
[1759437265245,10.87647521,231.05,231.03,0.69000001]
[1759437265446,15.20455254,231.05,231.03,1e-08]
[1759437266536,15.92455254,231.05,231.03,1e-08]
[1759437267155,15.20455254,231.05,231.03,1e-08]
[1759437267533,10.87647521,231.05,231.03,1e-08]
[1759437267934,15.20455183,231.05,231.03,1e-08]
[1759437268545,15.92455183,231.05,231.03,1e-08]
[1759437269151,15.20455183,231.05,231.03,1e-08]
[1759437269746,4.32807662,231.05,231.03,1e-08]
[1759437270657,4.3278932,231.06,231.03,1e-08]
[1759437271353,5.0478932,231.06,231.03,1e-08]
[1759437272047,10.87647521,231.08,231.04,0.66]
[1759437272359,0.65,231.08,231.03,1e-08]
[1759437272959,4.97759813,231.08,231.03,1e-08]
[1759437273759,0.65,231.07,231.03,1e-08]
[1759437274464,0.65,231.06,231.03,1e-08]
[1759437275938,4.32782151,231.07,231.03,1e-08]
[1759437276432,0.65,231.06,231.03,1e-08]
[1759437276847,4.97788508,231.06,231.03,1e-08]
[1759437278579,0.65,231.05,231.03,1e-08]
[1759437278774,4.32788508,231.06,231.03,1e-08]
[1759437279071,4.97788508,231.06,231.03,1e-08]
[1759437279271,0.65,231.06,231.03,1e-08]
[1759437279838,0.65,231.08,231.03,1e-08]
[1759437280134,0.65,231.08,231.03,0.66000001]
[1759437280337,0.65,231.07,231.03,1e-08]
[1759437280609,4.32741152,231.09,231.03,1e-08]
[1759437280869,0.65,231.08,231.03,1e-08]
[1759437281736,0.65,231.07,231.03,1e-08]
[1759437282168,0.65,231.06,231.03,1e-08]
[1759437284064,4.32771264,231.07,231.03,1e-08]
[1759437284370,0.65,231.06,231.03,1e-08]
[1759437285765,0.65,231.05,231.03,1e-08]
[1759437286987,0.65,231.08,231.03,1e-08]
[1759437287153,4.32731836,231.09,231.03,1e-08]
[1759437287355,0.65,231.07,231.03,1e-08]
[1759437287784,0.65,231.06,231.03,1e-08]
[1759437288170,0.65,231.05,231.03,1e-08]
[1759437288368,10.87647521,231.04,231.03,1e-08]
[1759437288992,11.52647521,231.04,231.03,1e-08]
[1759437290274,15.85473005,231.04,231.03,1e-08]
[1759437295660,0.65,231.04,231.03,1e-08]
[1759437295865,10.81912344,231.08,231.03,1e-08]
[1759437295866,10.87647521,231.06,231.03,1e-08]
[1759437296080,18.06981596,231.06,231.03,1e-08]
[1759437296290,18.71981596,231.06,231.03,1e-08]
[1759437296465,0.65,231.05,231.03,1e-08]
[1759437296666,7.84334075,231.06,231.03,1e-08]
[1759437296864,0.65,231.05,231.03,1e-08]
[1759437297162,4.97792866,231.06,231.03,1e-08]
[1759437297511,0.65,231.06,231.03,1e-08]
[1759437297667,2.86541209,231.07,231.03,0.66000001]
[1759437297866,0.65,231.07,231.03,1e-08]
[1759437298101,18.06904564,231.1,231.03,1e-08]
[1759437298401,0.65,231.06,231.03,1e-08]
[1759437298780,10.87647521,231.04,231.03,1e-08]
[1759437299175,0.65,231.04,231.03,1e-08]
[1759437299378,11.52647521,231.04,231.03,1e-08]
[1759437299781,15.85473005,231.04,231.03,1e-08]
[1759437300189,1.78473001,231.05,231.03,1e-08]
[1759437300190,4.32788134,231.06,231.03,1e-08]
[1759437300500,0.65,231.04,231.03,1e-08]
[1759437301298,4.97825484,231.04,231.03,1e-08]
[1759437302987,6.76298485,231.04,231.03,1e-08]
[1759437303618,4.97825484,231.04,231.03,1e-08]
[1759437303910,6.76298485,231.04,231.03,1e-08]
[1759437306295,4.97825484,231.04,231.03,1e-08]
[1759437306495,48.37946006,231.04,231.03,1e-08]
[1759437306705,51.24684467,231.04,231.03,1e-08]
[1759437306908,49.46211466,231.04,231.03,1e-08]
[1759437310011,18.72211466,231.04,231.03,1e-08]
[1759437310214,46.57473005,231.04,231.03,1e-08]
[1759437310394,49.44211466,231.04,231.03,1e-08]
[1759437310590,46.57473005,231.04,231.03,1e-08]
[1759437311391,15.20449017,231.06,231.03,1e-08]
[1759437311591,15.20449017,231.06,231.03,0.69000001]
[1759437311592,45.92437149,231.06,231.03,0.69000001]
[1759437311791,45.92437149,231.06,231.03,1e-08]
[1759437312203,4.32775085,231.07,231.03,1e-08]
[1759437312421,4.32733615,231.09,231.04,0.69]
[1759437312604,30.72,231.1,231.05,0.69]
[1759437312783,10.64203267,231.13,231.05,0.69]
[1759437312989,14.96862397,231.13,231.05,5.01802784]
[1759437313208,14.96862397,231.13,231.06,0.69]
[1759437313508,10.64203267,231.13,231.06,0.69]
[1759437314086,10.64203267,231.13,231.08,20.8]
[1759437314293,0.71,231.18,231.09,0.69]
[1759437314818,10.87647521,231.18,231.09,0.69]
[1759437314991,7.19239264,231.19,231.1,4.32713111]
[1759437315195,10.87647521,231.18,231.11,0.69]
[1759437315410,10.87647521,231.19,231.11,0.69]
[1759437315625,7.90227829,231.2,231.11,0.69]
[1759437315915,5.03533433,231.2,231.11,0.69]
[1759437316991,5.03533433,231.2,231.12,4.32675666]
[1759437317193,5.03533433,231.2,231.13,0.69]
[1759437317389,41.53181277,231.23,231.13,0.69]
[1759437317390,11.58647521,231.22,231.13,0.69]
[1759437318021,26.72357407,231.22,231.13,0.69]
[1759437318321,28.50830408,231.22,231.12,21.49]
[1759437318514,0.71,231.21,231.12,21.49]
[1759437318694,0.71,231.2,231.12,21.49]
[1759437318891,4.3254466,231.19,231.13,0.69]
[1759437319103,0.71,231.2,231.13,0.69]
[1759437319514,5.0352851,231.2,231.13,5.01654542]
[1759437321617,0.71,231.21,231.14,0.69]
[1759437322525,0.71,231.25,231.14,0.69]
[1759437322727,0.71,231.25,231.16,20.8]
[1759437322926,0.71,231.25,231.17,0.69]
[1759437323223,0.71,231.27,231.2,20.8]
[1759437323428,0.71,231.27,231.19,0.69]
[1759437323607,5.03399901,231.27,231.19,0.69]
[1759437324033,0.2,231.28,231.19,0.69]
[1759437325429,0.2,231.28,231.2,15.13840829]
[1759437325664,0.2,231.28,231.21,0.67]
[1759437326503,0.2,231.28,231.22,30.66]
[1759437326706,0.2,231.28,231.23,0.67]
[1759437327011,0.2,231.28,231.25,20.8]
[1759437327209,0.2,231.28,231.26,0.67]
[1759437327421,0.2,231.28,231.27,4.32395036]
[1759437327611,0.2,231.28,231.27,4.99395036]
[1759437328138,0.2,231.28,231.21,21.7310397]
[1759437328139,0.2,231.28,231.24,21.47]
[1759437328310,0.68,231.27,231.24,20.8]
[1759437328508,4.52376369,231.28,231.24,20.8]
[1759437328707,4.52376369,231.28,231.25,0.67]
[1759437328708,0.2,231.28,231.25,0.67]
[1759437329015,0.88,231.28,231.24,20.8]
[1759437329214,0.2,231.28,231.23,30.68]
[1759437329620,0.2,231.28,231.23,31.35]
[1759437330129,0.2,231.28,231.23,35.67459545]
[1759437330328,0.2,231.28,231.24,0.67]
[1759437330628,0.2,231.28,231.25,0.67]
[1759437330935,0.2,231.28,231.26,0.67]
[1759437331514,0.2,231.28,231.24,0.69]
[1759437331717,0.2,231.28,231.25,0.69]
[1759437332408,0.2,231.28,231.26,0.69]
[1759437332607,0.2,231.28,231.23,35.00459545]
[1759437332810,0.2,231.28,231.26,20.8]
[1759437333210,0.2,231.28,231.26,51.46]
[1759437335028,0.9,231.28,231.25,20.8]
[1759437335232,0.9,231.28,231.26,30.66]
[1759437335627,0.2,231.28,231.26,30.66]
[1759437336823,0.2,231.28,231.27,0.69]
[1759437337241,0.2,231.28,231.26,34.98412811]
[1759437337417,0.2,231.28,231.26,35.67412811]
[1759437338355,0.9,231.28,231.21,11.50265108]
[1759437338527,0.9,231.28,231.22,30.64]
[1759437338733,0.9,231.28,231.22,31.33]
[1759437339348,0.9,231.28,231.22,35.65488539]
[1759437339716,0.2,231.28,231.22,34.96488539]
[1759437340062,0.2,231.28,231.23,0.69]
[1759437340249,0.2,231.28,231.24,0.69]
[1759437341219,0.2,231.28,231.24,5.0143386]
[1759437341741,0.2,231.28,231.24,4.3243386]
[1759437341944,0.2,231.28,231.25,0.69]
[1759437342150,0.2,231.28,231.26,30.6]
[1759437344756,0.9,231.28,231.26,30.6]
[1759437344940,0.2,231.28,231.26,30.6]
[1759437346448,0.2,231.28,231.26,34.92409702]
[1759437347235,0.2,231.28,231.26,30.6]
[1759437348525,0.2,231.28,231.26,35.61409512]
[1759437348751,0.2,231.28,231.26,34.92409512]
[1759437348946,0.2,231.28,231.27,0.69]
[1759437349848,0.2,231.28,231.26,34.92409512]
[1759437350032,0.2,231.28,231.26,35.61409512]
[1759437350232,0.2,231.28,231.26,31.29]
[1759437351058,0.2,231.28,231.26,34.92407181]
[1759437351437,0.2,231.28,231.26,35.61407181]
[1759437353352,0.2,231.28,231.26,30.6]
[1759437353576,0.2,231.28,231.26,31.29]
[1759437354053,0.2,231.28,231.26,35.61410718]
[1759437354255,0.2,231.28,231.26,30.6]
[1759437354433,0.2,231.28,231.26,31.29]
[1759437354840,0.2,231.28,231.26,30.6]
[1759437355355,0.2,231.28,231.26,31.29]
[1759437355830,0.9,231.28,231.22,0.69]
[1759437356031,0.7,231.27,231.22,21.49]
[1759437356231,0.7,231.27,231.22,20.8]
[1759437356632,0.7,231.27,231.23,30.52]
[1759437357940,0.2,231.28,231.23,34.84468695]
[1759437358143,0.7,231.27,231.23,34.84468695]
[1759437358428,0.2,231.28,231.23,35.53468695]
[1759437358642,0.9,231.28,231.23,35.53468695]
[1759437359334,0.7,231.27,231.23,34.84468695]
[1759437359859,0.2,231.28,231.23,35.53468695]
[1759437360047,0.7,231.27,231.24,30.52]
[1759437360251,0.2,231.28,231.24,30.52]
[1759437360252,0.2,231.28,231.25,0.69]
[1759437360846,0.9,231.28,231.24,30.52]
[1759437361548,0.9,231.28,231.24,31.2]
[1759437361752,0.2,231.28,231.24,31.2]
[1759437361958,0.2,231.28,231.25,15.81513513]
[1759437362448,0.2,231.28,231.26,0.68]
[1759437362760,0.2,231.28,231.27,31.2]
[1759437363845,0.2,231.28,231.27,35.52395036]
[1759437364455,0.2,231.28,231.27,34.84395036]
[1759437364973,0.2,231.28,231.27,30.52]
[1759437365478,0.2,231.28,231.27,34.84395036]
[1759437366074,0.2,231.28,231.27,25.12395036]
[1759437366375,0.2,231.28,231.27,55.62395036]
[1759437368671,0.2,231.28,231.27,51.3]
[1759437368863,0.88,231.28,231.27,51.3]
[1759437369479,0.2,231.28,231.27,51.3]
[1759437369655,0.2,231.28,231.27,55.62395036]
[1759437370051,0.2,231.28,231.27,56.30395036]
[1759437377876,0.2,231.28,231.27,25.12395036]
[1759437378055,0.2,231.28,231.27,56.30395036]
[1759437378255,0.2,231.28,231.27,55.62395036]
[1759437378562,0.2,231.28,231.27,56.30395036]
[1759437379591,0.2,231.28,231.27,55.62395036]
[1759437380582,0.88,231.28,231.27,25.12395036]
[1759437380753,0.88,231.28,231.27,55.62395036]
[1759437382178,0.88,231.28,231.27,34.82395036]
[1759437382566,0.2,231.28,231.27,34.82395036]
[1759437382876,0.2,231.28,231.27,35.50395036]
[1759437383382,0.2,231.28,231.27,34.82395036]
[1759437386063,0.2,231.28,231.27,25.12395036]
[1759437386064,0.91,231.28,231.27,25.12395036]
[1759437386266,0.91,231.28,231.27,55.62395036]
[1759437387577,0.2,231.28,231.27,55.62395036]
[1759437391495,0.2,231.28,231.27,56.29395036]
[1759437391869,0.2,231.28,231.27,55.62395036]
[1759437393791,0.2,231.28,231.27,35.49395036]
[1759437393981,0.2,231.28,231.27,46.37042557]
[1759437394182,0.2,231.28,231.27,48.10086618]
[1759437395801,0.2,231.3,231.29,20.8]
[1759437396091,0.2,231.3,231.29,51.3]
[1759437396293,0.2,231.3,231.29,51.97]
[1759437396680,0.2,231.3,231.29,55.5051469]
[1759437397705,1e-08,231.3,231.29,66.38162211]
[1759437397875,1e-08,231.3,231.29,70.70519857]
[1759437398084,1e-08,231.3,231.29,70.03519857]
[1759437400309,1e-08,231.3,231.29,70.70519857]
[1759437400473,1e-08,231.3,231.29,40.20519857]
[1759437400674,1e-08,231.3,231.29,70.70519857]
[1759437401980,1e-08,231.3,231.29,72.43548947]
[1759437402502,1e-08,231.3,231.29,70.03519857]
[1759437402887,1e-08,231.3,231.29,71.76548947]
[1759437403211,1e-08,231.3,231.29,72.43548947]
[1759437404088,1e-08,231.3,231.29,70.03519857]
[1759437404485,1e-08,231.3,231.29,70.70519857]
[1759437405000,1e-08,231.3,231.29,72.43548947]
[1759437406011,1e-08,231.32,231.3,10.87647521]
[1759437406190,1e-08,231.32,231.31,41.35647521]
[1759437406388,1e-08,231.32,231.31,62.02647521]
[1759437406701,1e-08,231.32,231.31,63.75646677]
[1759437407888,1e-08,231.32,231.31,43.75646677]
[1759437408109,1e-08,231.32,231.31,68.07966939]
[1759437410082,1e-08,231.32,231.31,67.40966939]
[1759437410608,1e-08,231.32,231.31,68.07966939]
[1759437411104,1e-08,231.32,231.31,67.40966939]
[1759437411612,1e-08,231.32,231.31,47.40966939]
[1759437411909,1e-08,231.32,231.31,67.40966939]
[1759437412790,1e-08,231.32,231.31,47.40966939]
[1759437413113,1e-08,231.32,231.31,67.40966939]
[1759437413416,1e-08,231.32,231.31,68.07966939]
[1759437414212,1e-08,231.32,231.31,67.40966939]
[1759437414792,1e-08,231.32,231.31,47.40966939]
[1759437415096,1e-08,231.32,231.31,67.40966939]
[1759437417789,1e-08,231.32,231.31,47.40966939]
[1759437417984,1e-08,231.32,231.31,67.40966939]
[1759437418797,1e-08,231.32,231.31,68.07966939]
[1759437419611,1e-08,231.32,231.31,67.40966939]
[1759437422611,0.2,231.43,231.34,20.8]
[1759437422791,6.30106939,231.43,231.31,16.86120075]
[1759437422993,1.7800959,231.42,231.31,4.32320262]
[1759437423237,2.0,231.41,231.32,30.46]
[1759437423516,2.0,231.41,231.35,20.8]
[1759437423719,2.0,231.41,231.36,30.46]
[1759437423919,2.0,231.41,231.36,43.43662045]
[1759437424105,2.0,231.41,231.36,30.46]
[1759437424418,2.0,231.41,231.37,10.87647521]
[1759437424594,0.66,231.4,231.39,20.8]
[1759437424926,0.66,231.4,231.39,51.26]
[1759437425425,0.66,231.4,231.39,53.26]
[1759437426908,0.66,231.4,231.39,57.58170793]
[1759437428419,0.66,231.4,231.39,53.26]
[1759437428628,0.66,231.4,231.39,57.58170793]
[1759437433821,0.66,231.4,231.33,4.32265519]
[1759437434022,0.66,231.39,231.34,30.46]
[1759437434220,0.66,231.38,231.36,4.32064068]
[1759437434525,4.32114769,231.42,231.37,30.46]
[1759437435048,0.66,231.41,231.37,30.46]
[1759437435329,0.66,231.4,231.37,30.46]
[1759437435532,0.2,231.43,231.38,4.32189471]
[1759437435752,0.66,231.39,231.38,4.32189471]
[1759437435919,0.66,231.39,231.38,34.78114769]
[1759437436222,0.66,231.39,231.38,30.46]
[1759437437624,0.66,231.39,231.36,10.80126173]
[1759437437830,4.98170793,231.39,231.37,30.46]
[1759437438126,0.66,231.38,231.36,10.80126173]
[1759437438314,2.66,231.38,231.35,30.46]
[1759437438518,0.66,231.37,231.35,30.46]
[1759437438721,0.66,231.36,231.35,30.46]
[1759437441454,0.66,231.39,231.35,35.50245515]
[1759437441614,0.66,231.39,231.35,39.82400431]
[1759437441814,0.66,231.41,231.36,0.72]
[1759437442049,0.66,231.4,231.37,30.46]
[1759437442854,0.2,231.43,231.37,47.75858047]
[1759437442855,0.66,231.39,231.37,47.75858047]
[1759437444024,0.7,231.41,231.37,47.75858047]
[1759437444253,0.7,231.4,231.37,47.75858047]
[1759437444549,4.52096197,231.43,231.37,47.75858047]
[1759437444723,0.7,231.42,231.37,47.75858047]
[1759437444924,4.52096197,231.43,231.37,47.75858047]
[1759437444925,0.7,231.41,231.37,47.75858047]
[1759437445124,0.7,231.4,231.37,47.75858047]
[1759437445522,0.7,231.4,231.37,34.78196002]
[1759437446055,0.7,231.4,231.38,15.19829477]
[1759437446351,0.7,231.4,231.39,30.46]
[1759437449872,0.7,231.4,231.39,34.78170793]
[1759437450167,0.9,231.43,231.39,34.78170793]
[1759437450465,0.7,231.42,231.39,34.78170793]
[1759437450662,0.7,231.41,231.39,34.78170793]
[1759437450864,0.7,231.41,231.39,30.46]
[1759437451065,0.7,231.4,231.39,30.46]
[1759437451651,0.7,231.42,231.39,30.46]
[1759437451846,0.7,231.41,231.39,30.46]
[1759437452441,0.9,231.43,231.39,34.78170287]
[1759437452748,0.9,231.43,231.39,35.44170287]
[1759437453058,0.7,231.42,231.39,39.10223533]
[1759437453295,0.7,231.41,231.39,39.10223533]
[1759437453453,0.7,231.41,231.39,34.78170287]
[1759437454741,0.7,231.41,231.39,30.46]
[1759437455043,0.2,231.43,231.39,34.78154069]
[1759437455353,0.9,231.43,231.39,35.44154069]
[1759437455555,0.9,231.43,231.39,48.41703862]
[1759437455941,0.2,231.43,231.4,0.66]
[1759437456149,0.2,231.43,231.41,31.1]
[1759437456458,0.2,231.43,231.42,34.76114769]
[1759437457558,0.2,231.43,231.42,30.44]
[1759437459546,0.2,231.43,231.42,34.76114769]
[1759437460072,0.2,231.43,231.42,35.42114769]
[1759437460757,0.2,231.43,231.42,34.76114769]
[1759437461138,0.2,231.43,231.42,35.42114769]
[1759437461568,0.2,231.43,231.42,34.76114769]
[1759437462975,0.2,231.43,231.42,35.42114769]
[1759437463860,0.2,231.43,231.42,39.74141686]
[1759437464356,0.2,231.43,231.42,39.08141686]
[1759437464563,0.2,231.43,231.42,34.76114769]
[1759437464766,0.2,231.43,231.42,35.42114769]
[1759437465062,0.2,231.43,231.42,39.74141686]
[1759437468748,0.2,231.43,231.42,8.64141686]
[1759437468945,0.2,231.43,231.42,39.08141686]
[1759437470175,0.2,231.43,231.42,39.74141686]
[1759437471870,0.2,231.43,231.42,35.42114769]
[1759437474061,0.2,231.43,231.42,56.22114769]
[1759437474777,0.2,231.43,231.42,56.20114769]
[1759437475679,0.9,231.43,231.42,55.54114769]
[1759437476054,0.2,231.43,231.42,55.54114769]
[1759437476876,0.2,231.43,231.42,56.20114769]
[1759437479172,0.2,231.43,231.42,35.40114769]
[1759437480856,0.2,231.43,231.42,39.72087944]
[1759437481060,0.2,231.43,231.42,39.06087944]
[1759437481360,0.2,231.43,231.42,39.72087944]
[1759437481556,0.2,231.43,231.42,9.30087944]
[1759437481868,0.2,231.43,231.42,39.72087944]
[1759437482268,0.2,231.43,231.42,39.06087944]
[1759437482686,0.2,231.43,231.42,39.73087944]
[1759437486182,0.2,231.43,231.42,39.06087944]
[1759437487192,0.2,231.43,231.42,39.73087944]
[1759437494303,0.2,231.43,231.42,9.31087944]
[1759437494479,0.2,231.43,231.42,39.71087944]
[1759437496795,0.89,231.43,231.42,8.64087944]
[1759437496980,0.2,231.43,231.42,39.04087944]
[1759437497497,0.2,231.43,231.42,8.64087944]
[1759437497675,0.2,231.43,231.42,39.04087944]
[1759437498323,0.2,231.43,231.42,39.71087944]
[1759437504707,0.86,231.43,231.42,8.64087944]
[1759437504887,0.86,231.43,231.42,39.04087944]
[1759437505897,0.86,231.43,231.42,8.64087944]
[1759437506085,0.86,231.43,231.42,39.04087944]
[1759437509219,0.86,231.43,231.42,4.31973175]
[1759437509385,0.86,231.43,231.42,39.04087944]
[1759437509595,0.86,231.43,231.42,34.72114769]
[1759437510717,0.86,231.43,231.42,30.4]
[1759437511310,0.86,231.43,231.42,34.72114769]
[1759437514329,0.2,231.43,231.42,34.72114769]
[1759437514900,0.87,231.43,231.42,34.72114769]
[1759437515328,0.87,231.43,231.42,39.04117163]
[1759437515512,0.2,231.43,231.42,39.04117163]
[1759437517505,0.2,231.43,231.42,39.76117163]
[1759437518320,0.2,231.43,231.42,39.04117163]
[1759437521015,0.87,231.43,231.42,39.04117163]
[1759437521206,0.87,231.43,231.42,34.72114769]
[1759437523918,0.2,231.43,231.42,35.44114769]
[1759437524309,0.2,231.43,231.42,37.17076522]
[1759437525007,0.2,231.43,231.42,6.77076522]
[1759437525230,0.87,231.43,231.42,36.43076522]
[1759437525416,0.87,231.43,231.42,34.70114769]
[1759437526221,0.2,231.43,231.42,34.70114769]
[1759437532337,0.2,231.43,231.42,39.02082788]
[1759437533831,0.2,231.43,231.42,8.64082788]
[1759437534038,0.2,231.43,231.42,39.02082788]
[1759437535021,0.87,231.43,231.42,39.02082788]
[1759437535346,0.2,231.43,231.42,39.02082788]
[1759437535548,0.87,231.43,231.42,39.02082788]
[1759437536823,0.2,231.43,231.42,39.02082788]
[1759437537450,0.87,231.43,231.42,8.64082788]